bitfinex/quotes_ETHUSD_20240721
["timestamp","ask_amount","ask_price","bid_price","bid_amount"]
[1721586471637,0.30182175,3466.7,3466.6,9.646282]
[1721586473461,0.30182175,3466.7,3466.6,8.76934]
[1721586475826,2.2827,3467.7,3466.6,5.88467]
[1721586475950,2.2827,3467.7,3467.4,2.88399]
[1721586476150,0.1468901,3467.9,3467.7,2.88374]
[1721586476750,0.1468901,3467.9,3467.4,1.958]
[1721586477572,0.1468901,3467.9,3467.8,2.88367]
[1721586477757,0.1468901,3467.9,3467.8,5.88367]
[1721586478090,0.1468901,3467.9,3467.8,10.72534]
[1721586478309,0.005,3468.6,3468.5,2.88309]
[1721586478602,0.005,3468.6,3468.5,8.76618]
[1721586479188,0.005,3468.6,3468.5,9.838598]
[1721586482222,0.005,3468.6,3468.3,0.18110843]
[1721586482584,0.005,3468.6,3468.4,2.88316]
[1721586482913,0.005,3468.6,3467.5,2.607]
[1721586483119,0.005,3468.6,3467.9,2.88351]
[1721586483281,0.02901124,3468.5,3468.2,2.88328]
[1721586483694,0.02901124,3468.5,3468.2,2.88331]
[1721586483877,0.02901124,3468.5,3467.5,2.78603472]
[1721586483878,0.02901124,3468.5,3468.0,2.88347]
[1721586484082,0.02901124,3468.5,3467.8,2.88366]
[1721586484281,0.02901124,3468.5,3467.9,2.88357]
[1721586484484,0.02901124,3468.5,3467.5,2.78603472]
[1721586484771,0.02901124,3468.5,3467.7,2.88374]
[1721586484970,0.005,3468.6,3467.7,2.88374]
[1721586484971,0.0770838,3468.6,3467.7,2.88374]
[1721586485208,0.02896871,3468.4,3467.7,2.88374]
[1721586485369,0.005,3468.6,3467.7,2.88374]
[1721586485723,0.005,3468.6,3467.5,2.78603472]
[1721586485883,0.02896502,3468.5,3467.5,2.78603472]
[1721586486270,2.3947,3468.4,3467.6,3.0]
[1721586486502,2.3947,3468.4,3467.5,3.0]
[1721586486704,0.02896502,3468.3,3467.5,3.0]
[1721586486922,0.02896502,3468.3,3467.6,2.88376]
[1721586487206,0.02896502,3468.3,3467.7,3.0]
[1721586487410,2.3947,3468.4,3467.7,3.0]
[1721586487706,0.02896502,3468.3,3467.7,5.88374]
[1721586488717,0.02896502,3468.3,3467.7,3.0]
[1721586489013,0.02896502,3468.3,3467.2,2.88416]
[1721586489014,19.92,3468.2,3467.2,2.88416]
[1721586489176,19.92,3468.2,3466.8,2.88443]
[1721586489370,19.92,3468.2,3466.9,2.88441]
[1721586489572,19.92,3468.2,3466.7,2.88454]
[1721586489573,0.02896502,3468.1,3467.0,2.88432]
[1721586490173,2.2822,3468.0,3466.7,2.88454]
[1721586490375,5.23783435,3468.0,3466.7,2.88454]
[1721586490672,0.02864692,3467.9,3466.7,2.88454]
[1721586490873,0.07210435,3467.8,3466.7,2.88454]
[1721586491306,0.10075127,3467.7,3466.7,2.88451]
[1721586491505,0.02864692,3467.7,3466.4,5.67094112]
[1721586491717,2.2822,3468.0,3467.1,2.88419]
[1721586491870,0.02856552,3467.6,3467.1,2.88419]
[1721586492092,2.2822,3468.0,3467.1,2.88419]
[1721586492390,2.2822,3468.0,3466.7,2.88455]
[1721586492391,0.02856552,3467.5,3466.7,2.88455]
[1721586492738,19.94857107,3467.4,3466.8,3.0]
[1721586493014,2.2822,3467.2,3466.8,3.0]
[1721586493230,2.2822,3467.2,3465.9,2.607]
[1721586493231,2.2822,3467.2,3466.6,3.0]
[1721586493521,2.2822,3467.2,3466.4,2.88478]
[1721586493522,0.02854332,3467.1,3466.7,2.88458]
[1721586493674,0.02854332,3467.1,3466.8,5.88447]
[1721586493877,0.02854332,3467.1,3467.0,2.88433]
[1721586494077,19.92,3467.4,3467.3,2.88408]
[1721586494271,19.94852484,3467.4,3467.3,2.88408]
[1721586494503,20.25014334,3467.4,3467.3,2.88408]
[1721586494974,20.25014334,3467.4,3467.3,9.356568]
[1721586495180,16.23175667,3468.3,3467.3,3.588408]
[1721586495374,16.23175667,3468.2,3467.9,2.88358]
[1721586495625,16.23175667,3468.2,3467.5,2.607]
[1721586495626,16.23175667,3468.2,3468.0,2.88347]
[1721586495933,2.2822,3468.4,3468.0,2.88347]
[1721586495934,16.23175667,3468.1,3468.0,2.88347]
[1721586497699,16.23175667,3468.1,3467.8,2.88365]
[1721586497885,16.23175667,3468.1,3467.9,3.0]
[1721586498230,16.23175667,3468.1,3468.0,2.8835]
[1721586498396,16.23175667,3468.1,3468.0,5.8835]
[1721586498595,16.23175667,3468.1,3468.0,3.0]
[1721586498846,16.23175667,3468.1,3467.9,3.0]
[1721586499328,16.23175667,3468.1,3467.9,5.88357]
[1721586500530,16.23175667,3468.1,3468.0,2.8835]
[1721586500690,16.23175667,3468.1,3468.0,5.8835]
[1721586502763,16.24689747,3468.1,3468.0,5.8835]
[1721586504971,16.25208867,3468.1,3468.0,5.8835]
[1721586505667,16.25208867,3468.1,3468.0,6.760216]
[1721586505868,6.23279518,3468.1,3468.0,6.760216]
[1721586506090,6.23279518,3468.1,3468.0,14.483216]
[1721586506091,0.02792912,3468.1,3468.0,14.483216]
[1721586506395,0.005,3468.6,3468.5,5.76618]
[1721586506695,0.005,3468.6,3468.5,13.60527]
[1721586506980,0.005,3468.7,3468.5,13.60527]
[1721586506981,0.005,3468.7,3468.6,8.649]
[1721586507261,0.10365438,3469.8,3469.7,5.76418]
[1721586507432,0.005,3470.2,3469.8,5.76402]
[1721586507568,0.005,3470.2,3469.8,8.82165244]
[1721586508002,0.005,3470.2,3469.8,8.76402]
[1721586508209,0.005,3470.2,3469.8,14.25003]
[1721586508411,0.10365438,3470.4,3470.1,8.64528]
[1721586508648,0.1468901,3471.3,3470.4,11.24853]
[1721586509126,0.1468901,3471.3,3470.4,14.24853]
[1721586509680,0.1468901,3471.3,3470.4,14.79853]
[1721586509681,4.7e-06,3470.5,3470.4,14.79853]
[1721586509881,4.7e-06,3470.5,3470.4,19.79979348]
[1721586510189,0.1468901,3471.3,3471.2,8.64252]
[1721586510420,0.1468901,3471.3,3471.2,14.59826648]
[1721586510701,0.1468901,3471.3,3471.2,3.0]
[1721586510909,0.1468901,3471.3,3471.2,2.88084]
[1721586511118,0.1468901,3471.3,3471.2,3.0]
[1721586511323,0.1468901,3471.3,3471.2,6.18084]
[1721586511497,0.1468901,3471.3,3471.2,3.0]
[1721586511813,0.1468901,3471.3,3470.8,3.0]
[1721586512747,0.1468901,3471.3,3470.4,1.768007]
[1721586513055,0.1468901,3471.3,3470.6,2.88132]
[1721586513199,0.1468901,3471.3,3470.4,2.88148]
[1721586513396,0.1468901,3471.3,3470.4,2.88144]
[1721586513638,0.1468901,3471.3,3470.3,2.88156]
[1721586513859,0.1468901,3471.3,3469.7,5.48603]
[1721586514014,2.4687,3471.2,3470.0,2.88183]
[1721586514214,2.4687,3471.2,3470.1,3.0]
[1721586514525,2.4687,3471.2,3469.9,2.88192]
[1721586514748,2.88111,3470.9,3468.7,2.604]
[1721586514938,2.88111,3470.9,3469.4,2.88233]
[1721586515106,19.92,3471.0,3469.4,2.88234]
[1721586515303,19.92,3471.0,3469.8,2.88193]
[1721586515847,19.92,3471.0,3469.8,2.88195]
[1721586516073,19.92,3471.0,3470.1,2.88171]
[1721586516373,19.92,3471.1,3470.0,2.8818]
[1721586516525,19.92,3471.1,3470.1,3.0]
[1721586516726,19.92,3471.1,3470.1,5.88171]
[1721586517023,19.92,3471.1,3469.3,2.88242]
[1721586517024,2.4687,3471.2,3469.3,2.88242]
[1721586517242,0.55,3471.1,3469.3,2.88242]
[1721586517438,3.154,3471.1,3469.3,2.88242]
[1721586517850,6.03501,3471.1,3469.6,2.88209]
[1721586518164,6.03501,3471.1,3469.7,2.88208]
[1721586518316,6.03501,3471.1,3469.7,2.88207]
[1721586518656,2.4687,3471.2,3469.9,2.88192]
[1721586518976,2.4687,3471.2,3469.1,2.88258]
[1721586518977,2.4687,3471.2,3470.3,2.88157]
[1721586519129,2.4687,3471.2,3470.4,2.8815]
[1721586519318,2.4687,3471.2,3470.2,2.88167]
[1721586519669,2.4687,3471.2,3470.3,3.0]
[1721586519969,2.4687,3471.2,3470.1,3.0]
[1721586520263,2.4687,3471.2,3470.4,2.88148]
[1721586520475,0.1468901,3471.3,3470.7,2.88118]
[1721586520753,0.1468901,3471.3,3470.7,2.88123]
[1721586520953,0.1468901,3471.3,3470.5,2.88139]
[1721586521263,0.1468901,3471.3,3470.5,3.0]
[1721586521466,0.1468901,3471.3,3470.4,3.0]
[1721586521620,0.1468901,3471.3,3470.1,3.0]
[1721586521621,2.2584,3471.2,3470.1,3.0]
[1721586521817,2.2584,3471.2,3470.0,5.8818]
[1721586522040,2.2584,3471.2,3470.0,3.0]
[1721586522283,2.2584,3471.2,3470.0,5.88176]
[1721586522421,2.88094,3471.1,3470.0,3.0]
[1721586522735,2.88094,3471.1,3469.4,2.88233]
[1721586522736,2.88102,3471.0,3469.4,2.88233]
[1721586522958,2.8811,3470.9,3469.4,2.88233]
[1721586523117,0.55,3470.8,3469.5,2.88225]
[1721586523319,20.47,3470.8,3469.6,2.88217]
[1721586523663,20.47,3470.8,3468.6,4.0195]
[1721586523664,2.2584,3470.4,3468.9,2.88275]
[1721586523879,5.13991,3470.4,3469.0,2.88265]
[1721586524026,2.88159,3470.3,3469.0,2.88265]
[1721586524232,2.88159,3470.3,3468.7,2.88286]
[1721586524233,2.88168,3470.2,3468.7,2.88286]
[1721586524558,2.88185,3470.0,3468.7,2.8829]
[1721586524778,20.47,3470.3,3468.7,2.8829]
[1721586524779,0.55,3470.1,3468.9,2.88271]
[1721586525262,0.55,3470.2,3468.9,2.88271]
[1721586525421,2.88183,3470.1,3468.7,2.8829]
[1721586525623,2.8084,3470.0,3468.1,2.88341]
[1721586525856,22.1784,3470.0,3468.8,2.88277]
[1721586526124,22.1784,3470.0,3468.9,2.88273]
[1721586526125,2.2584,3470.0,3468.9,2.88273]
[1721586526284,2.2584,3470.0,3469.0,2.88265]
[1721586526285,0.3015787,3469.9,3469.0,2.88265]
[1721586526595,0.3015787,3469.9,3469.5,2.88224]
[1721586526885,0.3015787,3469.9,3468.7,2.3437]
[1721586526886,0.00551027,3469.8,3468.7,2.3437]
[1721586527168,19.92,3469.8,3469.7,2.88209]
[1721586527376,20.2215787,3469.9,3469.8,2.88201]
[1721586527533,20.2215787,3469.9,3469.8,5.76402]
[1721586527866,20.2215787,3469.9,3469.8,2.88201]
[1721586528075,0.3015787,3469.9,3469.8,6.340429]
[1721586528240,0.3015787,3469.9,3469.8,9.340429]
[1721586528441,0.3015787,3469.9,3469.8,11.684129]
[1721586528842,0.3015787,3469.9,3469.8,14.566139]
[1721586529165,0.3015787,3469.9,3469.8,9.340429]
[1721586529334,19.92,3471.1,3470.1,2.88172]
[1721586529533,19.92,3471.2,3470.4,2.88146]
[1721586529951,19.92,3471.2,3470.2,2.88166]
[1721586530348,2.604,3472.1,3469.8,3.0]
[1721586530349,0.57493232,3472.6,3471.2,2.4475]
[1721586530702,1.45986858,3473.1,3472.3,5.75986]
[1721586530703,0.35,3472.4,3472.3,5.75986]
[1721586530878,2.446,3473.1,3472.0,2.88015]
[1721586530879,2.446,3473.1,3472.4,5.87983]
[1721586531252,2.446,3473.1,3471.4,2.88067]
[1721586531253,2.446,3473.1,3471.4,2.88065]
[1721586531595,2.446,3473.1,3471.3,0.24475]
[1721586531596,2.446,3473.1,3471.5,3.0]
[1721586531801,5.32529,3473.1,3471.7,2.88042]
[1721586531950,2.87944,3472.9,3471.4,2.88066]
[1721586532145,2.87944,3472.9,3471.5,5.88059]
[1721586532345,2.87944,3472.9,3471.3,3.0]
[1721586532605,2.604,3473.0,3471.0,2.88099]
[1721586532606,2.87969,3472.6,3471.0,2.88099]
[1721586532758,2.446,3472.4,3471.0,2.88099]
[1721586532952,2.446,3472.4,3470.8,2.88113]
[1721586533190,3.42995,3472.3,3470.6,2.88134]
[1721586533403,2.446,3471.8,3470.8,2.88115]
[1721586533552,2.446,3471.8,3470.2,2.88167]
[1721586533899,2.446,3471.8,3470.2,2.604]
[1721586534194,2.446,3471.8,3471.2,2.88084]
[1721586534747,2.87952,3472.8,3471.2,2.88084]
[1721586534748,2.446,3472.7,3471.2,2.88084]
[1721586535184,2.446,3472.7,3471.3,2.88069]
[1721586535398,2.446,3472.7,3471.6,2.88044]
[1721586535750,2.446,3472.7,3471.2,2.88084]
[1721586535997,2.446,3472.7,3471.9,2.88018]
[1721586536496,2.87,3473.4,3472.5,2.87975]
[1721586536647,2.446,3473.3,3472.2,2.87993]
[1721586536850,2.446,3473.3,3472.3,2.8799]
[1721586537050,2.446,3473.3,3472.2,2.87993]
[1721586537294,7.92912,3473.3,3471.8,2.88026]
[1721586537490,2.87919,3473.2,3471.8,2.88026]
[1721586537694,2.87919,3473.2,3471.9,2.88024]
[1721586537875,2.446,3473.3,3472.1,2.88009]
[1721586538079,2.446,3473.3,3471.5,2.604]
[1721586538278,0.2889,3474.4,3471.6,5.79974255]
[1721586538279,2.446,3474.4,3471.6,5.79974255]
[1721586538452,2.446,3474.4,3473.6,2.87885]
[1721586538663,2.446,3474.4,3473.4,2.87896]
[1721586538664,0.35,3474.1,3473.4,2.87896]
[1721586538867,2.446,3474.4,3473.1,5.87921]
[1721586539107,0.1468901,3474.7,3473.1,3.0]
[1721586539311,0.30126286,3474.3,3473.8,2.87867]
[1721586539528,0.30126286,3474.3,3472.8,5.48349]
[1721586539529,0.30126286,3474.3,3473.7,2.87876]
[1721586539815,0.30126286,3474.3,3473.4,3.0]
[1721586539969,0.30126286,3474.3,3472.8,5.48349]
[1721586539970,0.30126286,3474.3,3473.3,3.0]
[1721586540172,0.30126286,3474.3,3473.2,2.87917]
[1721586540472,0.30126286,3474.3,3473.8,2.87866]
[1721586540684,0.30126286,3474.3,3473.9,3.0]
[1721586541106,0.30126286,3474.3,3472.8,5.48346]
[1721586541107,0.30126286,3474.3,3474.0,2.8785]
[1721586541274,0.30126286,3474.3,3474.1,5.87842]
[1721586541470,0.1468901,3474.7,3474.1,3.587842]
[1721586541781,0.1468901,3474.7,3474.6,5.75604]
[1721586542121,0.1468901,3474.7,3474.6,8.75604]
[1721586542268,0.1468901,3474.7,3474.6,5.87802]
[1721586542469,0.1468901,3474.7,3474.6,3.0]
[1721586542734,0.1468901,3474.7,3472.8,2.3634]
[1721586543020,0.1468901,3474.7,3473.3,2.87909]
[1721586543168,0.1468901,3474.7,3472.9,0.23634]
[1721586543169,2.87822,3474.4,3472.9,0.23634]
[1721586543496,2.319,3474.6,3472.1,2.3634]
[1721586543696,2.319,3474.6,3472.9,2.87942]
[1721586543879,2.319,3474.6,3472.3,2.604]
[1721586544080,2.319,3474.6,3472.8,2.604]
[1721586544287,2.319,3474.6,3472.7,0.2885]
[1721586544288,2.319,3474.6,3473.4,2.87901]
[1721586544605,2.319,3474.6,3472.1,2.3634]
[1721586544606,2.319,3474.6,3473.1,2.87926]
[1721586544796,2.319,3474.6,3472.2,0.2885]
[1721586545021,2.319,3474.6,3473.3,2.87909]
[1721586545225,2.319,3474.6,3473.5,2.87892]
[1721586545536,2.319,3474.6,3473.6,2.87885]
[1721586545826,2.319,3474.6,3473.8,2.87868]
[1721586546125,2.319,3474.6,3473.6,0.287885]
[1721586546309,2.319,3474.6,3472.6,3.0]
[1721586546688,2.87811,3474.5,3472.2,3.1685]
[1721586546990,2.319,3474.6,3473.2,2.87912]
[1721586547201,2.319,3474.6,3473.3,2.87907]
[1721586547684,2.319,3474.6,3473.0,2.87932]
[1721586547891,2.319,3474.6,3473.4,2.87901]
[1721586548123,2.319,3474.6,3473.1,0.287932]
[1721586548323,2.319,3474.6,3472.6,2.87963]
[1721586548324,2.319,3474.6,3472.7,3.0]
[1721586548492,0.1468901,3474.7,3472.7,3.0]
[1721586548690,0.1468901,3474.7,3473.3,2.8791]
[1721586548928,0.1468901,3474.7,3474.1,2.87839]
[1721586549130,0.1468901,3474.7,3474.2,3.0]
[1721586549290,0.1468901,3474.7,3474.3,0.3]
[1721586549725,0.1468901,3474.7,3474.0,2.87848]
[1721586549928,0.1468901,3474.7,3474.6,2.87802]
[1721586550130,0.1468901,3474.7,3474.2,2.8783]
[1721586550294,0.1468901,3474.7,3474.1,3.0]
[1721586550295,0.1468901,3474.7,3474.6,2.87802]
[1721586550630,0.1468901,3474.7,3474.6,5.87802]
[1721586550829,0.1468901,3474.7,3474.6,6.765822]
[1721586551126,0.1468901,3474.7,3474.6,9.643842]
[1721586552540,0.30109033,3476.3,3475.6,2.87718]
[1721586552835,0.30109033,3476.3,3475.7,3.0]
[1721586553203,0.30109033,3476.3,3475.2,3.0]
[1721586553408,0.30109033,3476.3,3475.3,0.587757]
[1721586553934,2.3882,3476.2,3474.6,0.887802]
[1721586554135,2.3882,3476.2,3474.4,2.87815]
[1721586554136,2.9382,3476.2,3474.4,2.87815]
[1721586554352,2.9382,3476.2,3473.9,2.4222]
[1721586554641,2.9382,3476.2,3473.9,5.30075]
[1721586554803,2.9382,3476.2,3474.8,2.87786]
[1721586554994,2.3882,3476.2,3474.8,2.87786]
[1721586555196,2.3882,3476.2,3474.9,0.287786]
[1721586555455,2.3882,3476.2,3475.2,2.87752]
[1721586555736,2.3882,3476.2,3475.0,2.87769]
[1721586555942,2.3882,3476.2,3475.1,2.87758]
[1721586556097,2.3882,3476.2,3475.2,2.87752]
[1721586556441,2.3882,3476.2,3475.2,3.7818246]
[1721586556624,2.3882,3476.2,3475.2,3.7818146]
[1721586557011,0.30109033,3476.3,3475.3,3.0]
[1721586557326,0.30109033,3476.3,3475.5,2.87727]
[1721586557524,0.30109033,3476.3,3475.3,3.0]
[1721586557725,0.30109033,3476.3,3475.4,0.39043046]
[1721586557939,0.30109033,3476.3,3474.8,3.0]
[1721586558122,0.30109033,3476.3,3475.3,2.87741]
[1721586558304,0.30109033,3476.3,3474.8,3.0]
[1721586558305,0.30109033,3476.3,3475.4,3.0]
[1721586558502,0.30109033,3476.3,3475.7,2.8771]
[1721586558715,0.30109033,3476.3,3475.2,3.0]
[1721586558716,0.30109033,3476.3,3475.8,3.0]
[1721586558943,0.30109033,3476.3,3475.3,2.87737]
[1721586559105,0.30109033,3476.3,3475.6,2.87719]
[1721586559306,0.30109033,3476.3,3475.4,6.465087]
[1721586559508,0.30109033,3476.3,3475.4,3.587737]
[1721586559744,0.30109033,3476.3,3476.2,2.8767]
[1721586559904,0.30109033,3476.3,3476.2,5.8767]
[1721586560112,0.30109033,3476.3,3476.2,6.752054]
[1721586560423,0.30109033,3476.3,3476.2,9.628754]
[1721586561647,0.34623795,3476.7,3476.2,6.752054]
[1721586561855,0.0545447,3477.5,3477.4,2.87571]
[1721586562150,0.0545447,3477.5,3477.4,6.038991]
[1721586562351,0.0545447,3477.5,3477.4,9.038991]
[1721586562936,0.0545447,3477.5,3477.4,11.914701]
[1721586563457,4.7e-06,3477.5,3477.4,11.914701]
[1721586563667,4.7e-06,3477.5,3477.4,9.038991]
[1721586563950,4.7e-06,3477.5,3477.4,11.914701]
[1721586564458,0.1468901,3478.1,3478.0,5.75042]
[1721586564617,2.3214,3480.1,3479.2,2.8742]
[1721586564815,2.3214,3480.1,3478.0,6.42521]
[1721586564816,2.3214,3480.1,3478.8,2.87454]
[1721586565043,2.3214,3480.1,3478.9,5.87446]
[1721586565242,2.3214,3480.1,3479.0,2.87433]
[1721586565512,2.3214,3480.1,3479.1,3.587433]
[1721586565763,2.3214,3480.1,3479.1,0.587433]
[1721586566058,2.3214,3480.1,3479.3,2.87411]
[1721586566276,2.2639,3480.8,3479.4,3.0]
[1721586566414,2.2639,3480.8,3479.2,2.87418]
[1721586566615,2.2639,3480.8,3479.3,3.0]
[1721586567045,2.2639,3480.8,3479.8,2.87372]
[1721586567250,2.2639,3480.8,3479.9,0.287372]
[1721586567425,2.2639,3480.8,3479.0,3.0]
[1721586567629,2.2639,3480.8,3479.6,3.0]
[1721586568157,2.2639,3480.8,3479.5,3.0]
[1721586568327,2.4107901,3481.4,3479.6,2.87388]
[1721586568542,5.2832301,3481.4,3479.7,5.8738]
[1721586568723,5.2832301,3481.4,3479.8,0.58738]
[1721586568724,2.87274,3481.0,3479.8,0.58738]
[1721586568920,2.87267,3481.1,3479.8,0.58738]
[1721586569119,2.4107901,3481.4,3479.8,0.58738]
[1721586569120,5.2832101,3481.4,3479.8,0.58738]
[1721586569373,2.87275,3481.0,3479.8,0.58738]
[1721586569535,2.4107901,3481.4,3479.2,3.0]
[1721586569536,2.87299,3480.7,3479.2,3.0]
[1721586569744,2.87306,3480.6,3479.0,3.0]
[1721586569966,5.2832001,3481.4,3478.4,2.2899]
[1721586569967,2.87249,3481.3,3478.4,2.2899]
[1721586570185,2.87249,3481.3,3478.4,2.87487]
[1721586570186,2.2639,3480.0,3478.4,2.87487]
[1721586570480,2.2639,3480.0,3478.7,2.87462]
[1721586570626,2.2639,3480.0,3478.8,0.287462]
[1721586570823,2.2639,3480.0,3477.9,0.2885]
[1721586570824,2.87365,3479.9,3478.2,2.87502]
[1721586571083,2.2639,3480.0,3477.9,0.2885]
[1721586571084,2.2639,3480.0,3477.9,3.16375]
[1721586571226,0.55,3479.9,3477.5,1.1914701]
[1721586571436,0.55,3479.9,3476.3,2.73]
[1721586571437,2.2639,3478.7,3476.5,2.87643]
[1721586571676,2.2639,3478.7,3476.0,2.2899]
[1721586571677,2.2639,3478.7,3476.2,2.87669]
[1721586571876,2.2639,3478.7,3475.3,2.87742]
[1721586571877,2.2639,3478.7,3476.3,2.87661]
[1721586572174,2.2639,3478.7,3475.7,2.73]
[1721586572175,5.13853,3478.7,3475.7,2.73]
[1721586572476,5.13853,3478.7,3476.6,2.87629]
[1721586572477,2.2639,3478.7,3476.6,2.87629]
[1721586572660,2.2639,3478.7,3476.3,2.73]
[1721586572661,2.2639,3478.7,3475.8,0.2885]
[1721586572868,2.2639,3478.7,3473.8,1.47632667]
[1721586572869,2.87546,3477.7,3476.1,2.87677]
[1721586573177,0.55,3478.6,3476.6,2.87634]
[1721586573178,3.42477,3478.6,3476.6,2.87634]
[1721586573357,0.568867,3478.5,3476.7,0.575283]
[1721586573560,2.87488,3478.4,3476.9,2.87612]
[1721586573863,2.2639,3478.4,3475.8,2.87703]
[1721586574178,2.8747,3478.7,3475.8,2.87701]
[1721586574179,2.87516,3478.1,3475.8,2.87701]
[1721586574377,2.87516,3478.1,3475.6,2.87719]
[1721586574378,2.87588,3477.2,3475.6,2.87719]
[1721586574561,2.87588,3477.2,3474.5,2.73]
[1721586574562,2.87565,3477.5,3473.9,2.2899]
[1721586574870,0.55,3477.4,3473.9,2.5784]
[1721586575101,2.87596,3477.1,3474.7,2.87792]
[1721586575367,2.87583,3477.3,3475.7,2.87709]
[1721586575574,0.55,3477.5,3474.1,2.87841]
[1721586575575,2.87605,3477.0,3474.1,2.87841]
[1721586575785,0.55,3477.5,3474.4,2.73]
[1721586575786,3.42565,3477.5,3474.4,2.73]
[1721586576079,2.2639,3477.6,3476.6,2.87631]
[1721586576245,2.2639,3477.6,3475.2,2.2899]
[1721586576483,2.2639,3477.6,3476.6,2.87635]
[1721586576666,2.2639,3477.6,3475.5,3.04]
[1721586576667,2.2639,3477.6,3476.7,3.0]
[1721586576869,2.2639,3477.6,3476.7,5.8762]
[1721586577092,2.2639,3477.6,3476.7,3.0]
[1721586577303,2.2639,3477.6,3475.6,2.73]
[1721586577304,2.2639,3477.6,3476.6,2.87632]
[1721586577471,2.2639,3477.6,3475.4,2.87734]
[1721586577669,2.2639,3477.6,3474.4,0.2885]
[1721586577906,2.2639,3477.6,3474.3,2.73]
[1721586577907,2.2639,3477.6,3475.8,2.87696]
[1721586578082,2.2639,3477.6,3474.6,2.878]
[1721586578083,0.22639,3477.5,3475.3,2.87742]
[1721586578418,0.22639,3477.5,3475.8,2.87703]
[1721586578570,0.22639,3477.5,3476.1,2.87677]
[1721586578775,0.22639,3477.5,3476.3,2.87659]
[1721586578994,0.22639,3477.5,3476.4,3.0]
[1721586579193,2.87581,3477.3,3475.7,2.8771]
[1721586579390,2.87587,3477.2,3475.8,3.0]
[1721586579789,2.87598,3477.1,3475.8,3.0]
[1721586580008,2.87598,3477.1,3475.6,5.87719]
[1721586580252,2.87598,3477.1,3474.5,1.04567795]
[1721586580253,0.30095695,3477.0,3475.1,2.87759]
[1721586580409,2.8765,3476.5,3475.1,0.287759]
[1721586580609,2.87637,3476.7,3475.2,2.87752]
[1721586580912,2.3307,3476.9,3475.9,2.87693]
[1721586581236,2.3307,3476.9,3476.0,2.87686]
[1721586581392,2.3307,3476.9,3474.3,2.73]
[1721586581393,2.3307,3476.9,3474.6,5.91795]
[1721586581598,2.3307,3476.9,3476.0,2.87684]
[1721586581803,2.3307,3476.9,3476.1,0.287684]
[1721586582052,0.30095695,3477.0,3475.2,3.0]
[1721586582335,0.30095695,3477.0,3476.4,2.87652]
[1721586582516,0.30095695,3477.0,3476.5,3.0]
[1721586582715,0.30095695,3477.0,3476.7,2.87627]
[1721586582934,0.30095695,3477.0,3476.6,2.87629]
[1721586583147,0.30095695,3477.0,3476.7,3.0]
[1721586583314,2.3307,3477.7,3476.6,0.87529]
[1721586583509,0.30087673,3477.4,3476.6,3.87529]
[1721586584026,0.30087673,3477.4,3476.7,3.0]
[1721586584230,0.30087673,3477.4,3476.8,2.87619]
[1721586584398,0.30087673,3477.4,3476.9,3.675148]
[1721586584796,0.30087673,3477.4,3477.3,2.87579]
[1721586584995,0.30087673,3477.4,3477.3,8.75158]
[1721586585324,0.30087673,3477.4,3477.3,5.87579]
[1721586585529,0.30087673,3477.4,3477.3,3.0]
[1721586585709,0.30087673,3477.4,3477.2,5.87587]
[1721586585913,0.30087673,3477.4,3477.3,0.587587]
[1721586586121,0.30087673,3477.4,3477.3,3.463377]
[1721586586325,0.30087673,3477.4,3477.3,3.587587]
[1721586586594,0.30087673,3477.4,3477.3,3.0]
[1721586586918,0.30087673,3477.4,3476.8,2.87612]
[1721586587117,0.30087673,3477.4,3477.1,2.87588]
[1721586587346,0.30087673,3477.4,3477.2,2.87587]
[1721586587495,2.3307,3478.4,3477.3,3.0]
[1721586587696,2.3307,3478.4,3477.0,2.876]
[1721586587697,2.3307,3478.4,3477.1,3.0]
[1721586588053,2.3307,3478.4,3477.1,5.87594]
[1721586588258,2.3307,3478.4,3477.3,2.87577]
[1721586588471,2.8754,3477.8,3475.7,0.2885]
[1721586588645,2.8754,3477.8,3476.0,2.87685]
[1721586588851,2.8754,3477.8,3475.3,2.87742]
[1721586588852,2.61824,3477.7,3475.7,2.87709]
[1721586589162,2.61824,3477.7,3474.7,2.3667]
[1721586589163,2.87563,3477.5,3475.1,2.87755]
[1721586589303,2.8807,3477.6,3475.6,2.87719]
[1721586589304,2.87607,3477.0,3475.6,2.87719]
[1721586589711,2.87588,3477.2,3475.6,2.87719]
[1721586589918,2.3307,3477.4,3474.4,2.3667]
[1721586590116,2.3307,3477.4,3475.1,2.87759]
[1721586590117,2.3307,3476.5,3475.1,2.87759]
[1721586590336,2.87621,3476.8,3475.1,2.87759]
[1721586590513,2.3307,3476.8,3474.5,0.624914]
[1721586590712,2.3307,3476.8,3475.0,2.87762]
[1721586590713,2.87645,3476.5,3475.0,2.87762]
[1721586590909,2.87645,3476.5,3475.1,0.287762]
[1721586590910,3.4638861,3476.5,3475.1,0.287762]
[1721586591112,2.87629,3476.7,3475.1,0.287762]
[1721586591553,2.87629,3476.7,3474.5,3.503014]
[1721586591842,2.3307,3476.8,3475.6,2.87712]
[1721586592132,2.3307,3476.8,3475.3,2.87737]
[1721586592133,5.2069,3476.8,3475.3,2.87737]
[1721586592297,5.2069,3476.8,3475.3,2.87741]
[1721586592298,2.3307,3476.8,3475.3,2.87741]
[1721586592499,2.3307,3476.8,3476.0,2.87679]
[1721586592732,2.3307,3476.8,3476.1,2.87677]
[1721586592934,2.3307,3476.8,3475.8,2.87701]
[1721586593103,2.3307,3476.8,3475.9,0.287701]